bitfinex/quotes_SOLUSD_20250429
["timestamp","ask_amount","ask_price","bid_price","bid_amount"]
[1745893149193,0.03,148.28,148.27,26.14216157]
[1745893149396,0.03,148.28,148.27,37.3698622]
[1745893150881,0.03,148.28,148.27,11.22770063]
[1745893151085,0.03,148.28,148.27,25.12770063]
[1745893151798,0.03,148.28,148.27,31.19770804]
[1745893153501,0.03,148.28,148.27,37.90309303]
[1745893156912,0.03,148.28,148.2,291.6]
[1745893157208,1.5361,148.27,148.24,17.93308562]
[1745893158395,1.5361,148.27,148.2,216.77273866]
[1745893158396,25.53921294,148.27,148.2,216.77273866]
[1745893158588,17.93308562,148.25,148.21,17.93308562]
[1745893158789,17.93308562,148.24,148.2,242.53308562]
[1745893159313,100.83308562,148.25,148.21,17.93308562]
[1745893160181,106.90411721,148.25,148.21,17.93308562]
[1745893162621,106.90411721,148.25,148.2,242.53308562]
[1745893162797,17.93308562,148.24,148.2,242.53308562]
[1745893163133,106.90411721,148.25,148.2,242.53308562]
[1745893164700,82.9,148.24,148.2,242.53308562]
[1745893165017,88.97135104,148.24,148.2,242.53308562]
[1745893167122,88.97135104,148.24,148.2,31.83308562]
[1745893167326,106.90443666,148.24,148.2,31.83308562]
[1745893167623,17.93308562,148.21,148.17,31.83308562]
[1745893167802,82.9,148.2,148.17,31.83308562]
[1745893168412,100.83308562,148.2,148.17,13.9]
[1745893169228,82.9,148.2,148.17,31.83308562]
[1745893169614,82.9,148.2,148.17,13.9]
[1745893169810,82.9,148.2,148.17,31.83308562]
[1745893170522,82.9,148.2,148.17,37.907073]
[1745893170714,82.9,148.2,148.19,17.93308562]
[1745893171520,82.9,148.2,148.19,24.00636991]
[1745893171722,82.9,148.2,148.19,17.93308562]
[1745893173428,82.9,148.23,148.19,17.93308562]
[1745893173622,82.9,148.23,148.19,11.22294073]
[1745893173827,82.9,148.23,148.2,11.22294073]
[1745893176020,82.9,148.25,148.22,11.22294073]
[1745893176226,88.97083133,148.25,148.21,11.22294073]
[1745893176403,100.19377206,148.25,148.21,11.22294073]
[1745893176611,11.22294073,148.24,148.2,11.22294073]
[1745893176910,11.22294073,148.24,148.19,11.22294073]
[1745893177227,11.22294073,148.22,148.17,13.9]
[1745893177404,82.9,148.21,148.17,25.12294073]
[1745893177607,94.12294073,148.21,148.17,25.12294073]
[1745893177806,82.9,148.21,148.17,25.12294073]
[1745893178110,82.9,148.21,148.18,11.22294073]
[1745893181151,88.97259272,148.21,148.17,13.9]
[1745893181441,11.22294073,148.19,148.17,13.9]
[1745893181645,11.22294073,148.18,148.17,13.9]
[1745893181815,11.22294073,148.18,148.15,0.063]
[1745893183531,17.97003623,148.18,148.15,0.063]
[1745893183934,82.9,148.19,148.15,0.063]
[1745893184115,82.9,148.19,148.17,17.97003623]
[1745893186416,82.9,148.19,148.18,17.97003623]
[1745893188849,82.9,148.19,148.17,17.97003623]
[1745893196453,82.9,148.19,148.16,13.9]
[1745893196454,106.94332834,148.19,148.16,13.9]
[1745893196831,82.9,148.18,148.16,13.9]
[1745893197153,17.97003623,148.17,148.15,0.063]
[1745893197353,17.97003623,148.16,148.15,0.063]
[1745893197648,100.87003623,148.16,148.15,0.063]
[1745893198949,82.9,148.16,148.15,0.063]
[1745893200329,106.94455026,148.16,148.15,0.063]
[1745893201933,82.9,148.16,148.15,18.03303623]
[1745893202255,1.6447,148.19,148.15,18.03303623]
[1745893202453,82.9,148.18,148.15,18.03303623]
[1745893203153,82.9,148.18,148.16,17.97003623]
[1745893203536,100.87003623,148.17,148.15,0.063]
[1745893203846,100.87003623,148.16,148.15,0.063]
[1745893204047,24.04455026,148.16,148.15,0.063]
[1745893205853,29.06953083,148.16,148.15,0.063]
[1745893207444,47.71917969,148.16,148.15,0.063]
[1745893207639,26.47194886,148.14,148.13,1e-08]
[1745893207859,26.47194886,148.14,148.09,0.063]
[1745893207860,62.41202132,148.14,148.09,0.063]
[1745893208034,17.97003623,148.1,148.09,0.063]
[1745893208559,22.9950168,148.1,148.09,0.063]
[1745893208760,29.07199181,148.1,148.09,0.063]
[1745893210046,5.02498057,148.1,148.09,0.063]
[1745893210238,22.9950168,148.1,148.09,0.063]
[1745893210960,5.02498057,148.1,148.09,0.063]
[1745893211462,29.07199181,148.1,148.09,0.063]
[1745893214194,5.02498057,148.1,148.09,0.063]
[1745893214651,22.9950168,148.1,148.09,0.063]
[1745893214854,29.07199181,148.1,148.09,0.063]
[1745893215842,5.02498057,148.1,148.09,0.063]
[1745893216371,22.9950168,148.1,148.09,0.063]
[1745893216755,24.04701124,148.1,148.09,0.063]
[1745893218468,29.03791415,148.1,148.09,0.063]
[1745893218771,4.99090291,148.1,148.09,0.063]
[1745893219647,17.97003623,148.11,148.09,0.063]
[1745893219976,24.04664949,148.11,148.09,0.063]
[1745893220570,17.97003623,148.11,148.09,0.063]
[1745893220873,17.97003623,148.14,148.09,18.03303623]
[1745893221170,17.97003623,148.12,148.09,0.063]
[1745893221343,100.87003623,148.12,148.09,0.063]
[1745893223370,82.9,148.12,148.09,0.063]
[1745893223686,82.9,148.12,148.1,17.97003623]
[1745893224658,82.9,148.12,148.09,18.03303623]
[1745893224969,100.87003623,148.12,148.09,0.063]
[1745893227575,82.9,148.12,148.09,18.03303623]
[1745893230154,82.9,148.12,148.09,24.11038564]
[1745893230359,82.9,148.12,148.1,17.97003623]
[1745893230885,100.87003623,148.12,148.09,0.063]
[1745893232073,106.94623075,148.12,148.09,0.063]
[1745893232483,100.87003623,148.12,148.09,0.063]
[1745893236000,82.9,148.12,148.09,0.063]
[1745893237675,5.00637851,148.11,148.09,0.063]
[1745893237871,5.00637851,148.11,148.1,17.97003623]
[1745893238695,5.00637851,148.11,148.09,0.063]
[1745893239694,82.9,148.12,148.09,0.063]
[1745893240295,11.24001381,148.11,148.09,0.063]
[1745893240593,16.24891892,148.1,148.09,0.063]
[1745893241681,29.07805086,148.1,148.09,0.063]
[1745893242491,5.00890511,148.1,148.09,18.05517074]
[1745893244092,5.00890511,148.1,148.09,24.27471768]
[1745893245293,5.00890511,148.14,148.11,6.07656471]
[1745893245486,5.00890511,148.14,148.11,24.06873545]
[1745893245687,5.00890511,148.14,148.11,6.07656471]
[1745893245991,5.00890511,148.14,148.11,24.06873545]
[1745893246365,5.00890511,148.13,148.11,24.06873545]
[1745893246770,5.00890511,148.13,148.11,6.07656471]
[1745893247000,100.89217074,148.15,148.11,6.07656471]
[1745893247297,100.89217074,148.15,148.11,24.06873545]
[1745893247677,5.01505844,148.14,148.11,24.06873545]
[1745893247899,5.01505844,148.14,148.12,17.99217074]
[1745893248490,5.01505844,148.14,148.11,24.06873545]
[1745893248701,5.01505844,148.13,148.11,24.06873545]
[1745893249297,5.01505844,148.13,148.12,17.99217074]
[1745893249595,5.01505844,148.13,148.12,24.0683252]
[1745893249898,5.01505844,148.13,148.11,24.06864261]
[1745893250389,5.01505844,148.13,148.1,24.21121971]
[1745893250592,106.96720754,148.15,148.1,17.99217074]
[1745893251302,100.89217074,148.15,148.1,17.99217074]
[1745893251485,100.89217074,148.15,148.11,17.99217074]
[1745893251903,5.01760144,148.14,148.11,17.99217074]
[1745893252900,5.01760144,148.13,148.11,24.06870708]
[1745893253287,5.01760144,148.13,148.11,17.99217074]
[1745893254002,5.01760144,148.13,148.1,24.06899631]
[1745893254301,5.01760144,148.12,148.1,24.06899631]
[1745893254500,5.01760144,148.12,148.11,17.99217074]
[1745893255900,5.01760144,148.12,148.1,6.07682557]
[1745893255901,5.01760144,148.12,148.09,31.93517074]
[1745893256206,24.0677708,148.14,148.09,31.93517074]
[1745893256795,5.0178453,148.13,148.09,31.93517074]
[1745893257008,5.0178453,148.13,148.09,38.01253394]
[1745893257186,5.0178453,148.13,148.12,17.99217074]
[1745893259710,5.0178453,148.13,148.12,24.0683252]
[1745893260509,5.0178453,148.13,148.12,24.21048677]
[1745893261394,5.0178453,148.13,148.12,42.20265751]
[1745893261604,82.9,148.18,148.13,0.14216157]
[1745893261902,82.9,148.17,148.16,17.99217074]
[1745893262091,82.9,148.17,148.15,17.99217074]
[1745893262431,82.93,148.19,148.16,17.99217074]
[1745893262708,5.01914761,148.18,148.17,6.07410406]
[1745893262883,5.01914761,148.18,148.16,6.07437729]
[1745893263403,82.93,148.19,148.16,6.07437729]
[1745893263900,82.93,148.19,148.14,13.88]
[1745893264109,106.99550922,148.19,148.15,17.99217074]
[1745893264309,89.00333848,148.19,148.15,17.99217074]
[1745893264501,82.93,148.19,148.16,17.99217074]
[1745893265213,82.93,148.19,148.17,17.99217074]
[1745893266105,5.01434899,148.18,148.17,17.99217074]
[1745893266513,5.01434899,148.18,148.17,24.20843637]
[1745893267504,0.03,148.19,148.18,0.14216157]
[1745893267702,0.03,148.19,148.18,18.13433231]
[1745893269616,0.03,148.19,148.14,13.88]
[1745893269916,11.25519426,148.19,148.15,11.22519426]
[1745893270205,11.25519426,148.19,148.14,25.10519426]
[1745893270510,11.22519426,148.18,148.14,25.10519426]
[1745893270812,5.0064245,148.17,148.14,25.10519426]
[1745893271195,11.22519426,148.16,148.14,13.88]
[1745893271398,11.22519426,148.15,148.11,11.22519426]
[1745893271599,82.9,148.14,148.11,17.9779537]
[1745893275812,82.9,148.13,148.1,13.88]
[1745893276017,82.9,148.13,148.11,17.9779537]
[1745893276506,82.9,148.13,148.12,17.9779537]
[1745893276729,82.9,148.13,148.11,17.9779537]
[1745893279531,82.9,148.13,148.1,19.95696127]
[1745893279830,82.9,148.13,148.12,17.9779537]
[1745893281326,82.9,148.13,148.12,24.05410816]
[1745893282331,88.97397053,148.18,148.12,24.19626973]
[1745893282513,82.9,148.17,148.14,17.9779537]
[1745893282830,82.9,148.17,148.13,17.9779537]
[1745893283032,5.01208718,148.16,148.13,17.9779537]
[1745893283217,17.9779537,148.15,148.1,13.88]
[1745893283417,82.9,148.14,148.11,17.9779537]
[1745893285128,5.0133377,148.13,148.11,17.9779537]
[1745893285804,5.0133377,148.13,148.12,17.9779537]
[1745893286005,82.9,148.14,148.12,17.9779537]
[1745893288632,82.9,148.14,148.1,13.88]
[1745893288930,5.01802329,148.13,148.1,31.8579537]
[1745893289136,5.01802329,148.13,148.11,17.9779537]
[1745893289438,82.9,148.14,148.12,17.9779537]
[1745893289617,82.9,148.14,148.11,17.9779537]
[1745893291135,82.9,148.14,148.12,17.9779537]
[1745893291816,82.9,148.14,148.1,6.21904498]
[1745893291817,82.9,148.14,148.11,17.9779537]
[1745893293537,82.9,148.14,148.11,11.23552186]
[1745893294639,82.9,148.14,148.12,11.23552186]
[1745893295011,82.9,148.14,148.13,11.23552186]
[1745893296142,87.91950788,148.14,148.13,11.23552186]
[1745893296637,87.91950788,148.14,148.13,17.31126613]
[1745893297441,87.91950788,148.14,148.13,11.23552186]
[1745893299440,5.01950788,148.14,148.13,11.23552186]
[1745893301142,5.02105022,148.14,148.13,11.23552186]
[1745893302343,82.9,148.17,148.14,0.14216157]
[1745893302639,82.93,148.19,148.16,11.23552186]
[1745893302956,82.93,148.19,148.18,11.23552186]
[1745893303243,87.95347388,148.19,148.18,11.23552186]
[1745893303423,87.95347388,148.19,148.15,13.86]
[1745893303741,82.9,148.18,148.15,25.09552186]
[1745893303944,94.13552186,148.18,148.15,13.86]
[1745893304119,5.02347388,148.17,148.15,13.86]
[1745893304321,5.02347388,148.17,148.15,25.09552186]
[1745893305149,5.02347388,148.16,148.15,25.09552186]
[1745893307043,5.02347388,148.16,148.15,13.86]
[1745893307419,11.09803328,148.16,148.13,11.23552186]
[1745893307745,5.02347388,148.16,148.13,11.23552186]
[1745893308244,5.02347388,148.15,148.13,11.23552186]
[1745893308938,5.02347388,148.15,148.12,11.23552186]
[1745893309136,100.21038962,148.16,148.11,25.09552186]
[1745893309322,11.23552186,148.15,148.11,25.09552186]
[1745893310043,5.0250282,148.14,148.11,25.09552186]
[1745893310725,5.0250282,148.13,148.11,25.09552186]
[1745893311743,17.31064372,148.15,148.11,25.09552186]
[1745893312923,5.02489358,148.14,148.11,25.09552186]
[1745893313141,5.02489358,148.14,148.12,11.23552186]
[1745893313446,5.02489358,148.14,148.13,11.23552186]
[1745893313744,82.9,148.16,148.13,11.23552186]
[1745893313947,100.23890569,148.19,148.15,11.23552186]
[1745893314127,82.9,148.18,148.15,11.23552186]
[1745893314746,5.02664093,148.17,148.15,11.23552186]
[1745893315457,5.02664093,148.17,148.12,11.37768343]
[1745893315624,82.9,148.18,148.16,11.23552186]
[1745893316047,0.03,148.19,148.17,11.23552186]
[1745893316245,0.03,148.19,148.18,11.23552186]
[1745893316735,5.0564459,148.19,148.18,11.23552186]
[1745893316933,5.0564459,148.19,148.16,13.86]
[1745893317125,5.0564459,148.19,148.18,11.23552186]
[1745893317451,0.03,148.19,148.18,11.23552186]
[1745893317926,0.03,148.19,148.17,11.23552186]
[1745893318249,0.03,148.19,148.18,11.23552186]
[1745893318444,5.05348063,148.19,148.18,11.37768343]
[1745893320148,5.05348063,148.19,148.18,17.45137758]
[1745893320443,0.03,148.19,148.18,17.45137758]
[1745893321451,0.03,148.19,148.18,47.3365483]
[1745893321833,0.03,148.19,148.18,36.10102644]
[1745893322546,0.03,148.19,148.18,17.45137758]
[1745893322746,0.03,148.19,148.18,11.37768343]
[1745893323154,0.03,148.19,148.16,13.86]
[1745893323650,0.03,148.19,148.17,11.23552186]
[1745893327154,0.03,148.19,148.16,25.09552186]
[1745893327358,94.13552186,148.18,148.14,11.23552186]
[1745893327558,5.01236126,148.17,148.14,11.23552186]
[1745893327860,82.9,148.16,148.12,25.09552186]
[1745893328055,11.23552186,148.14,148.12,13.86]
[1745893328241,94.13552186,148.15,148.12,13.86]
[1745893328560,5.01236126,148.14,148.12,13.86]
[1745893329462,5.01236126,148.13,148.12,13.86]
[1745893331542,5.01236126,148.13,148.12,25.09552186]
[1745893333558,5.01236126,148.13,148.12,25.23768343]
[1745893333772,82.9,148.15,148.12,25.09552186]
[1745893334772,82.9,148.15,148.13,11.23552186]
[1745893335450,82.9,148.15,148.12,25.09552186]
[1745893335664,82.9,148.15,148.14,11.23552186]
[1745893336477,87.91083324,148.15,148.14,11.23552186]
[1745893336883,87.91083324,148.15,148.13,11.23552186]
[1745893337250,82.9,148.15,148.13,11.23552186]
[1745893338246,82.9,148.15,148.12,25.09552186]
[1745893338653,94.13552186,148.15,148.12,13.86]
[1745893338858,11.23552186,148.14,148.12,13.86]
[1745893339062,100.21052018,148.15,148.12,13.86]
[1745893339768,5.01128039,148.14,148.12,13.86]
[1745893339976,5.01128039,148.14,148.11,11.23552186]
[1745893340474,5.01128039,148.13,148.11,11.23552186]
[1745893341373,100.21052018,148.15,148.11,11.23552186]
[1745893342477,5.00875511,148.14,148.11,11.23552186]
[1745893343469,11.08413019,148.14,148.09,6.14030965]
[1745893343671,87.90875511,148.13,148.1,11.23552186]
[1745893344870,87.90875511,148.13,148.11,11.23552186]
[1745893345082,82.9,148.13,148.11,11.23552186]
[1745893346494,82.9,148.13,148.09,6.14030965]
[1745893346661,82.9,148.13,148.1,11.23552186]
[1745893347279,100.21131379,148.13,148.09,11.44068343]
[1745893347878,5.00651672,148.12,148.09,11.44068343]
[1745893348255,11.23552186,148.11,148.09,0.063]
[1745893348557,94.13552186,148.1,148.09,0.063]
[1745893348779,105.21901359,148.1,148.09,0.063]
[1745893349093,22.31901359,148.1,148.09,0.063]
[1745893349383,5.00651672,148.1,148.09,0.063]
[1745893349754,16.24203858,148.1,148.09,0.063]
[1745893349986,23.84971359,148.1,148.09,0.063]
[1745893357483,12.61419173,148.1,148.09,0.063]
[1745893357693,23.84971359,148.1,148.09,0.063]
[1745893358584,18.84319687,148.1,148.09,0.063]
[1745893365382,23.81539238,148.1,148.09,0.063]
[1745893368302,57.65747878,148.1,148.07,0.063]
[1745893368472,11.23552186,148.08,148.07,0.063]
[1745893368663,11.23552186,148.08,148.06,0.063]
[1745893368868,11.23552186,148.07,148.05,0.063]
[1745893369067,11.23552186,148.06,148.05,0.063]
[1745893369607,41.12069258,148.06,148.04,0.063]
[1745893369901,29.88517072,148.04,147.98,0.063]
[1745893370074,17.31701385,147.99,147.98,0.063]
[1745893370795,52.17438008,147.99,147.98,1e-08]
[1745893371002,18.64964886,147.98,147.97,1e-08]
[1745893371167,18.64964886,147.97,147.96,1e-08]
[1745893371482,36.68473888,147.97,147.96,1e-08]
[1745893371897,41.65693439,147.97,147.96,1e-08]
[1745893372282,47.73924837,147.97,147.96,1e-08]
[1745893374018,29.08959951,147.97,147.96,1e-08]
[1745893374307,47.73924837,147.97,147.96,1e-08]
[1745893375421,101.54964885,147.96,147.95,1e-08]
[1745893375587,18.64964886,147.95,147.94,1e-08]
[1745893375789,55.51693439,147.95,147.92,0.063]
[1745893376009,18.03509002,147.93,147.92,0.063]
[1745893376905,23.00728553,147.93,147.92,0.063]
[1745893377608,29.09124415,147.93,147.92,0.063]
[1745893377787,24.11904864,147.93,147.92,0.063]
[1745893379019,25.67924864,147.93,147.92,0.063]
[1745893379701,44.3288975,147.93,147.92,0.063]
[1745893379903,49.24003365,147.93,147.92,0.063]
[1745893380909,44.3288975,147.93,147.92,0.063]
[1745893381114,25.67924864,147.93,147.92,0.063]
[1745893381412,18.03509002,147.92,147.88,0.063]
[1745893381611,24.11945994,147.92,147.88,0.063]
[1745893382195,18.03509002,147.92,147.88,0.063]
[1745893382590,24.11945994,147.92,147.88,0.063]
[1745893383419,76.01512364,147.92,147.88,0.063]
[1745893383618,24.12069418,147.89,147.88,0.063]
[1745893383807,42.77034304,147.89,147.88,0.063]
[1745893384617,20.21824886,147.88,147.79,0.063]
[1745893384796,18.03509002,147.8,147.79,0.063]
[1745893385810,6.08930987,147.8,147.79,0.063]
[1745893385996,24.12439989,147.8,147.79,0.063]
[1745893386400,42.77404875,147.8,147.79,0.063]
[1745893388401,24.12439989,147.8,147.79,0.063]
[1745893391307,24.12439989,147.8,147.73,18.09809002]
[1745893391624,18.03509002,147.79,147.75,18.03509002]
[1745893392128,18.03509002,147.8,147.76,18.03509002]
[1745893392314,18.03509002,147.81,147.76,18.03509002]
[1745893392508,24.12402008,147.81,147.76,18.03509002]
[1745893393221,18.03509002,147.8,147.76,18.03509002]
[1745893393609,33.86854704,147.85,147.77,18.03509002]
[1745893393922,6.08725059,147.85,147.8,18.03509002]
[1745893394108,18.03509002,147.84,147.8,18.03509002]
[1745893394504,100.93509002,147.84,147.8,18.03509002]
[1745893394813,82.9,147.84,147.82,18.03509002]
[1745893395015,82.9,147.84,147.81,18.03509002]
[1745893395407,82.9,147.84,147.83,18.03509002]
[1745893396127,82.9,147.84,147.82,18.03509002]
[1745893397229,82.9,147.84,147.83,18.03509002]
[1745893399338,18.03509002,147.87,147.83,18.03509002]
[1745893399511,82.9,147.86,147.83,18.03509002]
[1745893399713,82.9,147.86,147.84,18.03509002]
[1745893400113,82.9,147.86,147.83,18.03509002]
[1745893402209,82.9,147.86,147.8,6.2624]
[1745893402210,107.02224972,147.86,147.8,6.2624]
[1745893402411,82.9,147.85,147.84,18.03509002]
[1745893403315,82.9,147.85,147.8,12.35155998]
[1745893403521,82.9,147.85,147.83,18.03509002]
[1745893403733,82.9,147.85,147.8,12.35155998]
[1745893403926,82.9,147.85,147.83,18.03509002]
[1745893404633,82.9,147.85,147.82,18.03509002]
[1745893406123,100.93509002,147.84,147.79,18.03509002]
[1745893406318,82.9,147.83,147.79,18.03509002]
[1745893406526,82.9,147.83,147.78,6.09002041]
[1745893406725,82.9,147.83,147.79,18.03509002]
[1745893407251,82.9,147.83,147.8,18.03509002]
[1745893408236,82.9,147.83,147.77,48.6444565]
[1745893408433,82.9,147.83,147.82,18.03509002]
[1745893408626,24.1215416,147.87,147.82,18.03509002]
[1745893408627,82.9,147.86,147.82,18.03509002]
[1745893408823,82.9,147.85,147.83,18.03509002]
[1745893409019,82.9,147.85,147.84,18.03509002]
[1745893409839,82.9,147.85,147.83,18.03509002]
[1745893410142,100.93509002,147.85,147.81,18.03509002]
[1745893410348,107.02269111,147.85,147.81,18.03509002]
[1745893410526,88.98760109,147.85,147.81,18.03509002]
[1745893410727,88.98760109,147.85,147.82,18.03509002]
[1745893411456,88.98760109,147.85,147.81,18.03509002]
[1745893411742,88.98760109,147.85,147.82,18.03509002]
[1745893412119,82.9,147.85,147.82,18.03509002]
[1745893412323,82.9,147.85,147.83,18.03509002]
[1745893412723,88.98615102,147.88,147.84,18.03509002]
[1745893412923,107.02124104,147.88,147.84,18.03509002]
[1745893413452,4.94739696,147.87,147.84,18.03509002]
[1745893414035,11.03402967,147.87,147.84,18.03509002]
[1745893414241,4.94739696,147.86,147.84,18.03509002]
[1745893415644,4.94739696,147.85,147.84,18.03509002]
[1745893416443,11.03387035,147.87,147.84,18.03509002]
[1745893416842,82.9,147.86,147.84,18.03509002]
[1745893419950,82.9,147.9,147.85,18.03509002]
[1745893420154,87.8697979,147.89,147.87,18.03509002]
[1745893421132,82.9,147.89,147.87,18.03509002]
[1745893422248,82.9,147.89,147.88,18.03509002]
[1745893422451,82.9,147.89,147.87,18.03509002]
[1745893423152,88.98561947,147.89,147.87,18.03509002]
[1745893423551,88.98561947,147.89,147.86,18.03509002]
[1745893423857,82.9,147.89,147.87,18.03509002]
[1745893425256,88.98563695,147.89,147.87,18.03509002]
[1745893425454,82.9,147.89,147.87,18.03509002]
[1745893425857,82.9,147.89,147.88,18.03509002]
[1745893426037,82.9,147.89,147.87,18.03509002]
[1745893427560,82.9,147.89,147.87,11.27308984]
[1745893427864,88.98573372,147.89,147.86,11.27308984]
[1745893428087,82.9,147.89,147.84,11.27308984]
[1745893428254,82.93,147.92,147.88,11.27308984]
[1745893428469,82.93,147.92,147.91,11.27308984]
[1745893428650,0.03,147.92,147.91,11.27308984]
[1745893428961,0.03,147.92,147.91,22.54617968]
[1745893429162,0.03,147.92,147.91,28.77312253]
[1745893429640,0.03,147.92,147.91,42.25817559]
[1745893431451,0.03,147.92,147.91,18.01561637]
[1745893432272,0.03,147.92,147.88,6.08572029]
[1745893432564,0.03,147.92,147.91,18.01561637]
[1745893434850,82.9,147.91,147.89,18.01561637]
[1745893435169,100.91561637,147.9,147.82,6.0352]
[1745893435353,18.01561637,147.87,147.83,18.01561637]
[1745893435764,18.01561637,147.87,147.82,18.01561637]
[1745893435968,6.0868389,147.86,147.82,18.01561637]
[1745893436171,6.08652295,147.87,147.83,18.01561637]
[1745893436472,82.9,147.88,147.86,18.01561637]
[1745893436672,6.08528205,147.9,147.87,18.01561637]
[1745893437078,107.00046475,147.91,147.87,18.01561637]
[1745893437463,88.98484838,147.91,147.88,18.01561637]
[1745893437649,4.96572089,147.9,147.88,18.01561637]
[1745893437976,4.96572089,147.9,147.87,18.01561637]
[1745893438166,11.05102908,147.9,147.87,18.01561637]
[1745893439377,6.08530819,147.9,147.87,18.01561637]
[1745893439575,88.98490158,147.91,147.87,18.01561637]
[1745893439762,88.98490158,147.91,147.89,18.01561637]
[1745893439969,82.9,147.91,147.9,18.01561637]
[1745893440158,0.03,147.92,147.9,18.01561637]
[1745893440353,0.03,147.92,147.91,18.01561637]
[1745893440768,0.03,147.92,147.87,0.14216157]
[1745893440769,6.11441543,147.92,147.9,18.01561637]
[1745893441461,0.03,147.92,147.9,18.01561637]
[1745893441691,0.03,147.92,147.89,18.01561637]
[1745893441856,18.04561637,147.92,147.88,18.01561637]
[1745893442056,18.01561637,147.9,147.86,13.86]
[1745893442381,18.01561637,147.88,147.84,18.01561637]
[1745893442584,100.91561637,147.87,147.82,13.86]
[1745893442798,82.9,147.86,147.83,18.01561637]
[1745893443882,82.9,147.85,147.82,18.01561637]
[1745893445882,88.98732025,147.85,147.82,18.01561637]
[1745893446562,88.98732025,147.85,147.83,18.01561637]
[1745893446563,82.9,147.85,147.83,18.01561637]
[1745893447259,82.9,147.85,147.82,18.01561637]
[1745893447476,88.98733693,147.85,147.82,18.01561637]
[1745893447880,82.9,147.85,147.82,18.01561637]
[1745893448101,82.9,147.85,147.84,18.01561637]
[1745893448583,6.08571146,147.89,147.84,18.01561637]
[1745893448781,6.08571146,147.89,147.85,18.01561637]
[1745893449091,82.9,147.88,147.85,18.01561637]
[1745893449276,88.98633141,147.88,147.85,18.01561637]
[1745893450870,18.01561637,147.87,147.82,18.01561637]
[1745893451070,100.91561637,147.86,147.79,32.08960911]
[1745893451270,82.9,147.85,147.81,18.01561637]
[1745893451575,82.9,147.85,147.82,18.01561637]
[1745893451880,82.9,147.84,147.82,18.01561637]
[1745893453659,88.98769371,147.84,147.82,18.01561637]
[1745893454075,88.98769371,147.84,147.79,26.0]
[1745893454396,88.98769371,147.84,147.81,18.01561637]
[1745893454895,82.9,147.84,147.82,18.01561637]
[1745893455093,82.9,147.84,147.83,18.01561637]
[1745893455470,82.9,147.84,147.82,18.01561637]
[1745893455686,82.9,147.84,147.83,18.01561637]
[1745893457787,82.9,147.84,147.82,18.01561637]
[1745893459095,82.9,147.84,147.83,18.01561637]
[1745893461400,82.9,147.84,147.83,24.1036905]
[1745893461895,82.9,147.84,147.83,18.01561637]
[1745893462098,82.9,147.84,147.83,24.1036905]
[1745893463699,82.9,147.87,147.83,24.1036905]
[1745893463893,82.9,147.86,147.85,18.01561637]
[1745893465806,82.9,147.86,147.85,24.10286696]
[1745893465988,37.9608927,147.9,147.85,24.10286696]
[1745893465989,96.76,147.9,147.85,24.10286696]
[1745893466308,82.9,147.89,147.87,18.01561637]
[1745893466489,4.97590645,147.88,147.86,18.01561637]
[1745893467192,4.97590645,147.88,147.85,18.01561637]
[1745893467394,4.97590645,147.88,147.86,18.01561637]
[1745893467702,4.97590645,147.88,147.87,18.01561637]
[1745893468996,82.9,147.89,147.87,18.01561637]
[1745893469205,82.9,147.89,147.88,18.01561637]
[1745893469898,82.9,147.89,147.87,18.01561637]
[1745893470108,82.9,147.89,147.86,18.01561637]
[1745893470289,107.00129573,147.89,147.83,19.94800446]
[1745893470494,100.91561637,147.88,147.84,18.01561637]
[1745893470984,4.97985074,147.87,147.84,18.01561637]
[1745893472401,4.97985074,147.87,147.85,18.01561637]
[1745893472707,4.97985074,147.87,147.86,18.01561637]
[1745893472881,82.9,147.87,147.85,18.01561637]
[1745893475786,82.9,147.87,147.84,18.01561637]
[1745893476110,107.0021643,147.87,147.83,18.01561637]
[1745893476298,82.9,147.86,147.83,18.01561637]
[1745893476500,82.9,147.85,147.82,18.01561637]
[1745893479010,82.9,147.85,147.83,18.01561637]
[1745893479505,4.99821294,147.84,147.83,18.01561637]
[1745893480103,4.99821294,147.84,147.82,18.01561637]
[1745893480711,82.9,147.85,147.82,18.01561637]